fUSD/lending_fUSD_20260528
["ID","MTS","AMOUNT","RATE_DAILY","PERIOD"]
[423170471,1779901319000,298.91,6.646e-05,2]
[423170473,1779901319000,298.91,7.278e-05,2]
[423170472,1779901319000,298.91,6.962e-05,2]
[423170474,1779901319000,298.91,7.595e-05,2]
[423170478,1779901320000,298.91,8.861e-05,2]
[423170477,1779901320000,298.91,8.544e-05,2]
[423170476,1779901320000,298.91,8.228e-05,2]
[423170475,1779901320000,298.91,7.911e-05,2]
[423170479,1779901320000,298.91,9.177e-05,2]
[423170481,1779901321000,298.91,9.81e-05,2]
[423170480,1779901321000,298.91,9.494e-05,2]
[423170483,1779901321000,298.91,0.00010443,2]
[423170482,1779901321000,298.91,0.00010127,2]
[423170484,1779901463000,10000.0,0.00028082,120]
[423170485,1779901470000,262.89351686,0.0001,2]
[423170488,1779901534000,-250.0,0.00010868,2]
[423170487,1779901534000,-298.91,0.0001076,2]
[423170489,1779901534000,-923.14692654,0.00010976,2]
[423170490,1779901555000,182.16,8.544e-05,2]
[423170491,1779901597000,150.0,0.00010404,2]
[423170492,1779901611000,1000.0,0.00010557,2]
[423170493,1779901627000,-213.37529145,0.00010726,2]
[423170494,1779901630000,-436.52976633,0.00010726,2]
[423170495,1779901698000,1852.42,0.00010491,2]
[423170496,1779901726000,-863.68638929,0.00010726,2]
[423170502,1779901749000,-150.0,0.00010939,2]
[423170503,1779901749000,-96.86447537,0.00010972,2]
[423170501,1779901749000,-150.0,0.00010832,2]
[423170500,1779901749000,-5268.4557443,0.00010732,2]
[423170499,1779901749000,-46.76883433,0.00010726,2]
[423170498,1779901749000,200.0,0.00010417,2]
[423170497,1779901749000,-439.6397186,0.00010726,2]
[423170512,1779901753000,-300.0,0.00011154,2]
[423170510,1779901753000,-268.13,0.00011104,2]
[423170511,1779901753000,-150.0,0.00011154,2]
[423170509,1779901753000,-298.91,0.00011076,2]
[423170504,1779901753000,-103.13552463,0.00010972,2]
[423170506,1779901753000,-193.25,0.00010972,2]
[423170505,1779901753000,-200.0,0.00010972,7]
[423170514,1779901753000,-150.0,0.00011233,2]
[423170508,1779901753000,-1592.12,0.00011053,2]
[423170513,1779901753000,-461.54,0.00011155,2]
[423170507,1779901753000,-150.0,0.00011046,2]
[423170516,1779901753000,-1200.0,0.00011329,2]
[423170515,1779901753000,-150.0,0.00011261,2]
[423170526,1779901753000,-11019.86753077,0.00011555,2]
[423170525,1779901753000,-11192.0,0.00011532,2]
[423170524,1779901753000,-400.0,0.000115,4]
[423170522,1779901753000,-8864.8501646,0.00011387,2]
[423170523,1779901753000,-298.91,0.00011393,2]
[423170519,1779901753000,-300.0,0.00011344,2]
[423170521,1779901753000,-150.0,0.00011368,2]
[423170518,1779901753000,-300.0,0.00011344,2]
[423170517,1779901753000,-1592.12,0.0001133,2]
[423170520,1779901753000,-500.0,0.00011345,2]
[423170537,1779901756000,-688.97200297,0.00011599,2]
[423170544,1779901756000,-628.37753327,0.00011599,2]
[423170543,1779901756000,-688.97200297,0.00011599,2]
[423170542,1779901756000,-500.0,0.00011599,2]
[423170541,1779901756000,-688.97200297,0.00011599,2]
[423170539,1779901756000,-500.0,0.00011599,2]
[423170540,1779901756000,-500.0,0.00011599,2]
[423170538,1779901756000,-688.97200297,0.00011599,2]
[423170530,1779901756000,-323.05761165,0.00011599,2]
[423170536,1779901756000,-500.0,0.00011599,2]
[423170534,1779901756000,-688.97200297,0.00011599,2]
[423170533,1779901756000,-688.97200297,0.00011599,2]
[423170532,1779901756000,-260.18685375,0.00011599,2]
[423170545,1779901756000,-688.97200297,0.00011599,2]
[423170531,1779901756000,-500.0,0.00011599,2]
[423170529,1779901756000,-500.0,0.00011599,2]
[423170527,1779901756000,-1129.80101317,0.00011555,2]
[423170528,1779901756000,-1930.99481231,0.00011571,2]
[423170535,1779901756000,-500.0,0.00011599,2]
[423170546,1779901756000,-250.0,0.00011599,2]
[423170550,1779901756000,-688.97200297,0.00011599,2]
[423170548,1779901756000,-688.97200297,0.00011599,2]
[423170566,1779901756000,-688.97200297,0.00011599,2]
[423170567,1779901756000,-688.97200297,0.00011599,2]
[423170564,1779901756000,-688.97200297,0.00011599,2]
[423170565,1779901756000,-688.97200297,0.00011599,2]
[423170563,1779901756000,-688.97200297,0.00011599,2]
[423170547,1779901756000,-688.97200297,0.00011599,2]
[423170561,1779901756000,-688.97200297,0.00011599,2]
[423170558,1779901756000,-688.97200297,0.00011599,2]
[423170560,1779901756000,-688.97200297,0.00011599,2]
[423170557,1779901756000,-688.97200297,0.00011599,2]
[423170555,1779901756000,-688.97200297,0.00011599,2]
[423170554,1779901756000,-688.97200297,0.00011599,2]
[423170556,1779901756000,-688.97200297,0.00011599,2]
[423170553,1779901756000,-688.97200297,0.00011599,2]
[423170552,1779901756000,-688.97200297,0.00011599,2]
[423170551,1779901756000,-688.97200297,0.00011599,2]
[423170549,1779901756000,-688.97200297,0.00011599,2]
[423170559,1779901756000,-688.97200297,0.00011599,2]
[423170562,1779901756000,-688.97200297,0.00011599,2]
[423170579,1779901757000,-688.97200297,0.00011599,2]
[423170576,1779901757000,-688.97200297,0.00011599,2]
[423170580,1779901757000,-688.97200297,0.00011599,2]
[423170578,1779901757000,-688.97200297,0.00011599,2]
[423170577,1779901757000,-688.97200297,0.00011599,2]
[423170575,1779901757000,-688.97200297,0.00011599,2]
[423170574,1779901757000,-688.97200297,0.00011599,2]
[423170573,1779901757000,-688.97200297,0.00011599,2]
[423170570,1779901757000,-688.97200297,0.00011599,2]
[423170571,1779901757000,-688.97200297,0.00011599,2]
[423170568,1779901757000,-688.97200297,0.00011599,2]
[423170569,1779901757000,-688.97200297,0.00011599,2]
[423170581,1779901757000,-688.97200297,0.00011599,2]
[423170572,1779901757000,-688.97200297,0.00011599,2]
[423170582,1779901757000,-688.97200297,0.00011599,2]
[423170590,1779901757000,-1339.85960526,0.00011599,2]
[423170586,1779901757000,-688.97200297,0.00011599,2]
[423170583,1779901757000,-688.97200297,0.00011599,2]
[423170597,1779901757000,-1339.85960526,0.00011599,2]
[423170596,1779901757000,-1339.85960526,0.00011599,2]
[423170594,1779901757000,-1339.85960526,0.00011599,2]
[423170595,1779901757000,-1339.85960526,0.00011599,2]
[423170593,1779901757000,-1339.85960526,0.00011599,2]
[423170589,1779901757000,-1339.85960526,0.00011599,2]
[423170588,1779901757000,-1339.85960526,0.00011599,2]
[423170598,1779901757000,-346.9220184,0.00011599,2]
[423170591,1779901757000,-1339.85960526,0.00011599,2]
[423170587,1779901757000,-1339.85960526,0.00011599,2]
[423170585,1779901757000,-688.97200297,0.00011599,2]
[423170584,1779901757000,-688.97200297,0.00011599,2]
[423170592,1779901757000,-1339.85960526,0.00011599,2]
[423170601,1779901769000,-1339.85960526,0.00011599,2]
[423170600,1779901769000,-397.52223,0.00011497,2]
[423170599,1779901769000,-992.93758686,0.00011599,2]
[423170602,1779901769000,-1339.85960526,0.00011599,2]
[423170604,1779901769000,-1339.85960526,0.00011599,2]
[423170603,1779901769000,-1339.85960526,0.00011599,2]
[423170605,1779901770000,-397.94235392,0.00011599,2]
[423170607,1779901770000,-1339.85960526,0.00011599,2]
[423170608,1779901770000,-1339.85960526,0.00011599,2]
[423170610,1779901770000,-1339.85960526,0.00011599,2]
[423170606,1779901770000,-941.91725134,0.00011599,2]
[423170611,1779901770000,-1339.85960526,0.00011599,2]
[423170612,1779901770000,-1339.85960526,0.00011599,2]
[423170613,1779901770000,-1339.85960526,0.00011599,2]
[423170614,1779901770000,-1292.57044271,0.00011599,2]
[423170609,1779901770000,-1339.85960526,0.00011599,2]
[423170615,1779901771000,-1292.57044271,0.00011599,2]
[423170616,1779901771000,-1292.57044271,0.00011599,2]
[423170624,1779901771000,-1292.57044271,0.00011599,2]
[423170618,1779901771000,-1292.57044271,0.00011599,2]
[423170620,1779901771000,-1292.57044271,0.00011599,2]
[423170621,1779901771000,-1292.57044271,0.00011599,2]
[423170619,1779901771000,-1292.57044271,0.00011599,2]
[423170623,1779901771000,-1292.57044271,0.00011599,2]
[423170622,1779901771000,-1292.57044271,0.00011599,2]
[423170617,1779901771000,-1292.57044271,0.00011599,2]
[423170627,1779901771000,-1292.57044271,0.00011599,2]
[423170626,1779901771000,-1292.57044271,0.00011599,2]
[423170629,1779901771000,-1292.57044271,0.00011599,2]
[423170628,1779901771000,-1292.57044271,0.00011599,2]
[423170630,1779901771000,-1292.57044271,0.00011599,2]
[423170631,1779901771000,-800.0,0.000116,4]
[423170632,1779901771000,-31034.51880577,0.000116,2]
[423170633,1779901771000,-150.0,0.00011099,2]
[423170634,1779901771000,-26479.17446,0.000116,2]
[423170625,1779901771000,-1292.57044271,0.00011599,2]
[423170635,1779901822000,-150.0,0.00011099,2]
[423170643,1779901833000,-1000.0,0.00011599,2]
[423170651,1779901833000,-112717.70792167,0.00011689,2]
[423170642,1779901833000,-37.885,0.00011155,2]
[423170644,1779901833000,-300.0,0.00011599,2]
[423170649,1779901833000,-1592.12,0.00011606,2]
[423170641,1779901833000,-377.685,0.00011155,2]
[423170646,1779901833000,-466.85,0.00011599,2]
[423170650,1779901833000,-180.17736497,0.00011631,2]
[423170648,1779901833000,-20679.63668621,0.000116,2]
[423170652,1779901833000,-1104.50000001,0.00011689,2]
[423170647,1779901833000,-19669.39252162,0.000116,2]
[423170645,1779901833000,-1200.0,0.00011599,2]
[423170668,1779901837000,-1300.0,0.000117,4]
[423170669,1779901837000,-298.91,0.00011709,2]
[423170667,1779901837000,-34576.99207832,0.00011689,2]
[423170713,1779901838000,-500.0,0.00013698,2]
[423170715,1779901838000,-500.0,0.00013698,2]
[423170711,1779901838000,-500.0,0.00013698,2]
[423170710,1779901838000,-503.80292184,0.00013698,2]
[423170719,1779901838000,-500.00000001,0.00013698,2]
[423170708,1779901838000,-2000.0,0.00013407,2]
[423170717,1779901838000,-243.69,0.00013698,2]
[423170718,1779901838000,-500.0,0.00013698,2]
[423170720,1779901838000,-500.0,0.00013698,2]
[423170709,1779901838000,-63781.41352502,0.00013634,2]
[423170707,1779901838000,-166.66,0.00013356,2]
[423170706,1779901838000,-150.0,0.00012987,2]
[423170721,1779901838000,-421.94830284,0.00013698,2]
[423170751,1779901838000,-505.36498136,0.00013698,2]
[423170733,1779901838000,-500.0,0.00013698,2]
[423170732,1779901838000,-500.0,0.00013698,2]
[423170727,1779901838000,-500.0,0.00013698,2]
[423170734,1779901838000,-500.0,0.00013698,2]
[423170730,1779901838000,-500.0,0.00013698,2]
[423170735,1779901838000,-500.0,0.00013698,2]
[423170739,1779901838000,-500.0,0.00013698,2]
[423170738,1779901838000,-500.0,0.00013698,2]
[423170736,1779901838000,-500.0,0.00013698,2]
[423170737,1779901838000,-500.0,0.00013698,2]
[423170741,1779901838000,-500.0,0.00013698,2]
[423170742,1779901838000,-500.0,0.00013698,2]
[423170696,1779901838000,-298.44736424,0.0001253,2]
[423170724,1779901838000,-500.0,0.00013698,2]
[423170697,1779901838000,-33218.9209,0.0001253,2]
[423170743,1779901838000,-500.0,0.00013698,2]
[423170699,1779901838000,-415.57,0.0001255,2]
[423170673,1779901838000,-2200.0,0.000119,4]
[423170670,1779901838000,-1700.0,0.000118,4]
[423170671,1779901838000,-629.74,0.00011803,2]
[423170675,1779901838000,-2000.0,0.00012066,2]
[423170672,1779901838000,-1592.12,0.00011882,2]
[423170674,1779901838000,-298.91,0.00012025,2]
[423170676,1779901838000,-2500.0,0.0001213,2]
[423170677,1779901838000,-166.66,0.00012152,2]
[423170679,1779901838000,-500.0,0.00012252,2]
[423170678,1779901838000,-1592.12,0.00012159,2]
[423170680,1779901838000,-250.0,0.00012271,2]
[423170681,1779901838000,-450.0,0.00012329,2]
[423170686,1779901838000,-266.0574858,0.00012344,2]
[423170694,1779901838000,-152.0,0.00012463,2]
[423170683,1779901838000,-228.04757625,0.0001233,2]
[423170687,1779901838000,-4178.07912238,0.00012361,2]
[423170682,1779901838000,-63781.41352508,0.00012329,2]
[423170690,1779901838000,-150.0,0.00012429,2]
[423170685,1779901838000,-500.0,0.0001233,2]
[423170688,1779901838000,-1219.63090047,0.00012429,2]
[423170692,1779901838000,-1500000.0,0.0001243,2]
[423170700,1779901838000,-166.66,0.00012554,2]
[423170698,1779901838000,-2000.0,0.0001253,2]
[423170703,1779901838000,-1680.0,0.00012759,2]
[423170705,1779901838000,-77183.08578734,0.00012986,2]
[423170702,1779901838000,-420.0,0.00012738,2]
[423170704,1779901838000,-166.66,0.00012955,2]
[423170701,1779901838000,-190.53563043,0.00012702,2]
[423170684,1779901838000,-172.48722688,0.0001233,2]
[423170740,1779901838000,-500.0,0.00013698,2]
[423170774,1779901838000,-175.6,0.00015068,2]
[423170750,1779901838000,-500.44476879,0.00013698,2]
[423170780,1779901838000,-3292.0,0.00015438,2]
[423170778,1779901838000,-415.57,0.00015339,2]
[423170789,1779901838000,-377.29,0.00016612,2]
[423170782,1779901838000,-377.29,0.00015821,2]
[423170781,1779901838000,-77183.08578734,0.00015758,2]
[423170788,1779901838000,-1373.3,0.00016438,2]
[423170783,1779901838000,-300.0,0.00016,2]
[423170787,1779901838000,-63781.41352502,0.00016244,2]
[423170784,1779901838000,-2000.0,0.00016088,2]
[423170785,1779901838000,-150.0,0.00016197,2]
[423170786,1779901838000,-191.01081584,0.00016197,2]
[423170790,1779901838000,-168.02,0.00016712,2]
[423170792,1779901838000,-593.58,0.00016815,2]
[423170802,1779901838000,-2000.0,0.00017676,2]
[423170795,1779901838000,-3614.86,0.00017121,2]
[423170791,1779901838000,-415.57,0.00016733,2]
[423170793,1779901838000,-1219.63090047,0.00016942,2]
[423170794,1779901838000,-4609.0,0.00016982,2]
[423170796,1779901838000,-77183.08578734,0.00017144,2]
[423170797,1779901838000,-166.66,0.00017342,2]
[423170800,1779901838000,-63781.41352502,0.00017549,2]
[423170798,1779901838000,-377.29,0.00017403,2]
[423170801,1779901838000,-500.0,0.00017676,2]
[423170799,1779901838000,-282.97,0.000175,2]
[423170803,1779901838000,-166.66,0.00017707,2]
[423170805,1779901838000,-11633.51325845,0.000179,2]
[423170744,1779901838000,-500.0,0.00013698,2]
[423170779,1779901838000,-20679.63668616,0.00015357,2]
[423170773,1779901838000,-377.29,0.0001503,2]
[423170806,1779901838000,-11633.51325844,0.000179,2]
[423170770,1779901838000,-77183.08578734,0.00014372,2]
[423170772,1779901838000,-63781.41352502,0.00014939,2]
[423170749,1779901838000,-500.0,0.00013698,2]
[423170748,1779901838000,-367.77913183,0.00013698,2]
[423170746,1779901838000,-500.0,0.00013698,2]
[423170747,1779901838000,-500.0,0.00013698,2]
[423170753,1779901838000,-500.0,0.00013698,2]
[423170756,1779901838000,-500.0,0.00013698,2]
[423170764,1779901838000,-250.0,0.00014,2]
[423170757,1779901838000,-500.0,0.00013698,2]
[423170759,1779901838000,-352.97,0.000137,2]
[423170763,1779901838000,-2454.41897781,0.0001399,2]
[423170752,1779901838000,-500.0,0.00013698,2]
[423170754,1779901838000,-500.0,0.00013698,2]
[423170755,1779901838000,-500.0,0.00013698,2]
[423170745,1779901838000,-349.46206438,0.00013698,2]
[423170762,1779901838000,-415.57,0.00013944,2]
[423170758,1779901838000,-645.93,0.00013699,2]
[423170765,1779901838000,-2351.0,0.00014035,2]
[423170766,1779901838000,-166.66,0.00014158,2]
[423170768,1779901838000,-200.0,0.00014261,2]
[423170777,1779901838000,-250.0,0.00015327,2]
[423170776,1779901838000,-593.58,0.00015286,2]
[423170771,1779901838000,-2000.0,0.00014748,2]
[423170769,1779901838000,-629.2,0.00014309,2]
[423170775,1779901838000,-216.72425874,0.00015272,2]
[423170804,1779901838000,-352.97,0.000178,2]
[423170761,1779901838000,-593.58,0.00013758,2]
[423170760,1779901838000,-166.66,0.00013757,2]
[423170767,1779901838000,-377.29,0.00014239,2]
[423170852,1779901839000,-352.0,0.0002,2]
[423170843,1779901839000,-377.29,0.00019776,2]
[423170848,1779901839000,-531.0,0.0002,2]
[423170842,1779901839000,-150.0,0.00019634,4]
[423170838,1779901839000,-150.0,0.0001913,2]
[423170851,1779901839000,-498.0,0.0002,2]
[423170835,1779901839000,-207.36570982,0.00019,2]
[423170837,1779901839000,-20679.63668616,0.00019114,2]
[423170845,1779901839000,-77183.08578734,0.00019916,2]
[423170833,1779901839000,-63999.80498799,0.00019,2]
[423170846,1779901839000,-324.0,0.0002,2]
[423170840,1779901839000,-166.66,0.00019168,2]
[423170853,1779901839000,-313.0,0.0002,2]
[423170844,1779901839000,-150.0,0.00019801,4]
[423170849,1779901839000,-183.0,0.0002,2]
[423170847,1779901839000,-316.0,0.0002,2]
[423170850,1779901839000,-212.0,0.0002,2]
[423170857,1779901839000,-176.12555738,0.0002,2]
[423170854,1779901839000,-1222.0,0.0002,2]
[423170858,1779901839000,-176.12555738,0.0002,2]
[423170856,1779901839000,-176.12555738,0.0002,2]
[423170855,1779901839000,-245.0,0.0002,2]
[423170860,1779901839000,-176.1255574,0.0002,2]
[423170836,1779901839000,-150.0,0.00019036,4]
[423170861,1779901839000,-400.0,0.0002,2]
[423170841,1779901839000,-150.0,0.00019466,4]
[423170834,1779901839000,-589.52024451,0.00019,2]
[423170819,1779901839000,-593.58,0.00018344,2]
[423170832,1779901839000,-377.29,0.00018985,2]
[423170859,1779901839000,-176.12555738,0.0002,2]
[423170807,1779901839000,-11633.51325844,0.000179,2]
[423170808,1779901839000,-11633.51325844,0.000179,2]
[423170809,1779901839000,-46534.05303376,0.000179,2]
[423170812,1779901839000,-150.0,0.00018123,2]
[423170810,1779901839000,-350.0,0.00018,2]
[423170811,1779901839000,-166.66,0.00018072,2]
[423170813,1779901839000,-150.0,0.00018123,2]
[423170814,1779901839000,-150.0,0.00018123,2]
[423170815,1779901839000,-150.0,0.00018123,2]
[423170816,1779901839000,-150.0,0.00018123,2]
[423170818,1779901839000,-377.29,0.00018194,2]
[423170817,1779901839000,-281.26179824,0.00018123,2]
[423170820,1779901839000,-12228.45,0.00018356,2]
[423170823,1779901839000,-150.0,0.00018459,2]
[423170822,1779901839000,-166.66,0.00018437,2]
[423170821,1779901839000,-1373.3,0.0001841,2]
[423170824,1779901839000,-77183.08578734,0.0001853,2]
[423170825,1779901839000,-150.0,0.00018627,2]
[423170827,1779901839000,-551.0,0.0001874,2]
[423170826,1779901839000,-6453.0,0.0001868,2]
[423170828,1779901839000,-629.2,0.00018747,2]
[423170830,1779901839000,-166.66,0.00018803,2]
[423170831,1779901839000,-63781.41352502,0.00018854,2]
[423170829,1779901839000,-150.0,0.00018795,2]
[423170839,1779901839000,-150.0,0.0001913,2]
[423170862,1779901839000,-2212.04,0.0002,2]
[423170869,1779901839000,-63781.41352502,0.00020159,2]
[423170863,1779901839000,-372.0,0.0002,2]
[423170909,1779901839000,-3908.99684271,0.000215,12]
[423170902,1779901839000,-1399.94592799,0.000215,12]
[423170900,1779901839000,-63781.41352502,0.00021464,2]
[423170910,1779901839000,-3908.99684271,0.000215,12]
[423170901,1779901839000,-1399.94592799,0.000215,12]
[423170908,1779901839000,-3560.68021445,0.000215,12]
[423170903,1779901839000,-3212.36358626,0.000215,12]
[423170906,1779901839000,-3541.98874752,0.000215,12]
[423170905,1779901839000,-3541.98874752,0.000215,12]
[423170907,1779901839000,-3560.68021445,0.000215,12]
[423170904,1779901839000,-3212.36358626,0.000215,12]
[423170911,1779901839000,-4252.38848953,0.000215,12]
[423170899,1779901839000,-1219.63090047,0.00021454,2]
[423170914,1779901839000,-150.0,0.00021679,2]
[423170918,1779901839000,-5000.0,0.00021918,2]
[423170912,1779901839000,-280.0,0.00021678,2]
[423170917,1779901839000,-352.97,0.000218,2]
[423170915,1779901839000,-219.0,0.00021679,2]
[423170916,1779901839000,-2212.04,0.00021778,2]
[423170919,1779901839000,-324.0,0.00022,2]
[423170920,1779901839000,-316.0,0.00022,2]
[423170921,1779901839000,-531.0,0.00022,2]
[423170922,1779901839000,-183.0,0.00022,2]
[423170923,1779901839000,-212.0,0.00022,2]
[423170864,1779901839000,-2000.0,0.0002,7]
[423170925,1779901839000,-352.0,0.00022,2]
[423170913,1779901839000,-280.0,0.00021679,2]
[423170898,1779901839000,-377.29,0.00021359,2]
[423170924,1779901839000,-498.0,0.00022,2]
[423170897,1779901839000,-77183.08578734,0.00021302,2]
[423170865,1779901839000,-150.00000001,0.00020137,4]
[423170868,1779901839000,-152.95000063,0.00020137,4]
[423170866,1779901839000,-150.0,0.00020137,4]
[423170867,1779901839000,-150.0,0.00020137,4]
[423170871,1779901839000,-10155.32192017,0.000203,2]
[423170880,1779901839000,-316.0,0.00021,2]
[423170881,1779901839000,-531.0,0.00021,2]
[423170895,1779901839000,-1365.49,0.00021273,2]
[423170872,1779901839000,-1373.3,0.00020381,2]
[423170875,1779901839000,-1035.7,0.00020548,2]
[423170879,1779901839000,-324.0,0.00021,2]
[423170877,1779901839000,-377.29,0.00020568,2]
[423170882,1779901839000,-183.0,0.00021,2]
[423170873,1779901839000,-500.0,0.00020488,2]
[423170884,1779901839000,-498.0,0.00021,2]
[423170878,1779901839000,-150.0,0.00020621,3]
[423170893,1779901839000,-293.75,0.00021273,2]
[423170888,1779901839000,-245.0,0.00021,2]
[423170891,1779901839000,-150.0,0.00021151,4]
[423170889,1779901839000,-372.0,0.00021,2]
[423170885,1779901839000,-352.0,0.00021,2]
[423170887,1779901839000,-1222.0,0.00021,2]
[423170883,1779901839000,-212.0,0.00021,2]
[423170874,1779901839000,-2000.0,0.00020488,2]
[423170876,1779901839000,-9035.0,0.00020548,2]
[423170886,1779901839000,-313.0,0.00021,2]
[423170962,1779901840000,-18232.27,0.00023368,2]
[423170971,1779901840000,-215.46156935,0.00023551,2]
[423170965,1779901840000,-9999.99,0.00023368,2]
[423170961,1779901840000,-4999.99,0.00023368,2]
[423170955,1779901840000,-2000.0,0.00023299,2]
[423170953,1779901840000,-629.2,0.00023186,2]
[423170951,1779901840000,-245.0,0.00023,2]
[423170952,1779901840000,-372.0,0.00023,2]
[423170956,1779901840000,-1197.04,0.00023368,2]
[423170957,1779901840000,-521.0,0.00023368,2]
[423170966,1779901840000,-9999.99,0.00023368,2]
[423170976,1779901840000,-694.89044229,0.000238,2]
[423170963,1779901840000,-1580.23,0.00023368,2]
[423170969,1779901840000,-160.0,0.00023512,2]
[423170967,1779901840000,-353.36,0.00023368,2]
[423170964,1779901840000,-299.99,0.00023368,7]
[423170972,1779901840000,-2212.04,0.00023556,2]
[423170970,1779901840000,-208.97895572,0.00023551,2]
[423170968,1779901840000,-47094.46,0.00023368,2]
[423170975,1779901840000,-1545.9448655,0.000236,2]
[423170974,1779901840000,-1407.64099139,0.000236,2]
[423170977,1779901840000,-1407.64099139,0.000238,2]
[423170950,1779901840000,-1222.0,0.00023,2]
[423170979,1779901840000,-200.0,0.00023808,2]
[423170973,1779901840000,-694.89044229,0.000236,2]
[423170958,1779901840000,-24999.99,0.00023368,2]
[423170939,1779901840000,-77183.08578734,0.00022688,2]
[423170959,1779901840000,-1102.76,0.00023368,2]
[423170978,1779901840000,-1545.9448655,0.000238,2]
[423170926,1779901840000,-313.0,0.00022,2]
[423170927,1779901840000,-1222.0,0.00022,2]
[423170933,1779901840000,-1094.74,0.00022466,2]
[423170930,1779901840000,-372.0,0.00022,2]
[423170932,1779901840000,-1373.3,0.00022353,2]
[423170928,1779901840000,-245.0,0.00022,2]
[423170929,1779901840000,-450.0,0.00022,2]
[423170931,1779901840000,-212.45574764,0.00022,3]
[423170934,1779901840000,-1905.66,0.00022466,2]
[423170935,1779901840000,-2155.29,0.00022466,2]
[423170937,1779901840000,-4866.20556838,0.00022587,14]
[423170938,1779901840000,-1880.0,0.00022603,2]
[423170936,1779901840000,-4866.20556838,0.00022587,14]
[423170940,1779901840000,-63781.41352502,0.00022769,2]
[423170942,1779901840000,-324.0,0.00023,2]
[423170941,1779901840000,-20679.63668616,0.00022871,2]
[423170943,1779901840000,-316.0,0.00023,2]
[423170945,1779901840000,-183.0,0.00023,2]
[423170946,1779901840000,-212.0,0.00023,2]
[423170947,1779901840000,-498.0,0.00023,2]
[423170944,1779901840000,-531.0,0.00023,2]
[423170949,1779901840000,-313.0,0.00023,2]
[423170948,1779901840000,-352.0,0.00023,2]
[423170960,1779901840000,-212.38,0.00023368,2]
[423170954,1779901840000,-500.0,0.00023299,2]
[423170981,1779901840000,-316.0,0.00024,2]
[423170991,1779901840000,-500.0,0.00024,2]
[423170980,1779901840000,-324.0,0.00024,2]
[423171016,1779901840000,-9999.99,0.00024174,2]
[423171017,1779901840000,-9804.4,0.00024174,2]
[423171018,1779901840000,-9999.99,0.00024174,2]
[423171019,1779901840000,-21371.53,0.00024174,2]
[423171021,1779901840000,-694.89044229,0.000243,2]
[423171020,1779901840000,-500.0,0.00024274,2]
[423171022,1779901840000,-1407.64099139,0.000243,2]
[423171024,1779901840000,-1373.3,0.00024324,2]
[423171023,1779901840000,-1545.9448655,0.000243,2]
[423171025,1779901840000,-694.89044229,0.000245,2]
[423171026,1779901840000,-1407.64099139,0.000245,2]
[423171028,1779901840000,-1000.0,0.00024658,2]
[423171027,1779901840000,-1545.9448655,0.000245,2]
[423171029,1779901840000,-281.31,0.00024658,2]
[423171030,1779901840000,-197.72,0.00024658,2]
[423171031,1779901840000,-197.88,0.00024658,2]
[423171032,1779901840000,-195.81,0.00024658,2]
[423171033,1779901840000,-172.48722688,0.00024665,2]
[423171035,1779901840000,-323.65507168,0.00025,2]
[423171036,1779901840000,-531.79515969,0.00025,2]
[423170985,1779901840000,-498.0,0.00024,2]
[423171038,1779901840000,-229.00087319,0.00025,2]
[423171037,1779901840000,-184.4153596,0.00025,2]
[423171039,1779901840000,-515.68705661,0.00025,2]
[423171040,1779901840000,-356.0,0.00025,2]
[423171015,1779901840000,-176.64,0.00024174,2]
[423171008,1779901840000,-999.99,0.00024174,2]